Workbook

Sheet 考试成绩折算汇总表
A1: 附件2：
A2: 天门市2023年度考试录用公务员综合成绩（含人民警察体测结果）汇总表
A3: 机构名称 | B3: 招录机关 | C3: 招录职位 | D3: 职位代码 | E3: 招录数量 | F3: 姓名 | G3: 性别 | H3: 准考证号 | I3: 行政职业能力测验 | J3: 申论 | K3: 公安专业科目 | L3: 综合知识测试 | M3: 笔试折算分 | N3: 专业测试分数 | O3: 面试分数 | P3: 综合成绩 | Q3: 排名 | R3: 体能测评结果 | S3: 备注
A4: 天门 | B4: 天门市纪委监委派驻机构 | C4: 文字综合岗 | D4: 14230202016001001 | E4: 1 | F4: 戴誉宏 | G4: 女 | H4: 142100101213 | I4: 65.6 | J4: 57 | M4: 61.73 | O4: 85.6 | P4: =M4/2+O4/2 -> 73.665 | Q4: 1
A5: 天门 | B5: 天门市纪委监委派驻机构 | C5: 文字综合岗 | D5: 14230202016001001 | E5: 1 | F5: 卢圣旺 | G5: 男 | H5: 142100101616 | I5: 53.6 | J5: 56.5 | M5: 54.905 | O5: 84.2 | P5: =M5/2+O5/2 -> 69.5525 | Q5: 2
A6: 天门 | B6: 天门市纪委监委派驻机构 | C6: 文字综合岗 | D6: 14230202016001001 | E6: 1 | F6: 吴玲玲 | G6: 女 | H6: 142100203727 | I6: 47.2 | J6: 53.5 | M6: 50.035 | O6: 缺考 | Q6: 3
A8: 天门 | B8: 天门市纪委监委派驻机构 | C8: 执纪执法岗 | D8: 14230202016001002 | E8: 2 | F8: 郭乃霆 | G8: 男 | H8: 142100201812 | I8: 63.2 | J8: 64 | M8: 63.56 | O8: 84.2 | P8: =M8/2+O8/2 -> 73.88 | Q8: 1
A9: 天门 | B9: 天门市纪委监委派驻机构 | C9: 执纪执法岗 | D9: 14230202016001002 | E9: 2 | F9: 岳杪玉寒 | G9: 女 | H9: 142100204117 | I9: 60 | J9: 59 | M9: 59.55 | O9: 85.6 | P9: 72.575 | Q9: 2
A10: 天门 | B10: 天门市纪委监委派驻机构 | C10: 执纪执法岗 | D10: 14230202016001002 | E10: 2 | F10: 吴雨婷 | G10: 女 | H10: 142100203716 | I10: 58.4 | J10: 62 | M10: 60.02 | O10: 84.8 | P10: 72.41 | Q10: 3
A11: 天门 | B11: 天门市纪委监委派驻机构 | C11: 执纪执法岗 | D11: 14230202016001002 | E11: 2 | F11: 李珂怡 | G11: 女 | H11: 142100103913 | I11: 61.6 | J11: 65 | M11: 63.13 | O11: 78 | P11: 70.565 | Q11: 4
A12: 天门 | B12: 天门市纪委监委派驻机构 | C12: 执纪执法岗 | D12: 14230202016001002 | E12: 2 | F12: 吕登可 | G12: 男 | H12: 142100101726 | I12: 60.8 | J12: 58 | M12: 59.54 | O12: 80.4 | P12: 69.97 | Q12: 5
A13: 天门 | B13: 天门市纪委监委派驻机构 | C13: 执纪执法岗 | D13: 14230202016001002 | E13: 2 | F13: 戴子龙 | G13: 男 | H13: 142100103311 | I13: 61.6 | J13: 56 | M13: 59.08 | O13: 73 | P13: 66.04 | Q13: 6
A15: 天门 | B15: 天门市信访局 | C15: 办公室综合岗 | D15: 14230202016001003 | E15: 1 | F15: 谢子玉 | G15: 女 | H15: 142100204018 | I15: 56.8 | J15: 64 | M15: 60.04 | O15: 82.6 | P15: =M15/2+O15/2 -> 71.32 | Q15: 1
A16: 天门 | B16: 天门市信访局 | C16: 办公室综合岗 | D16: 14230202016001003 | E16: 1 | F16: 谭清明 | G16: 男 | H16: 142100202115 | I16: 65.6 | J16: 57.5 | M16: 61.955 | O16: 78.6 | P16: =M16/2+O16/2 -> 70.2775 | Q16: 2
A17: 天门 | B17: 天门市信访局 | C17: 办公室综合岗 | D17: 14230202016001003 | E17: 1 | F17: 谈仲川 | G17: 女 | H17: 142100104808 | I17: 59.2 | J17: 55.5 | M17: 57.535 | O17: 80.6 | P17: =M17/2+O17/2 -> 69.0675 | Q17: 3
A19: 天门 | B19: 天门市政府办公室 | C19: 文字综合岗 | D19: 14230202016001004 | E19: 1 | F19: 洪灿 | G19: 女 | H19: 142100201318 | I19: 58.4 | J19: 55 | M19: 56.87 | O19: 83.8 | P19: =M19/2+O19/2 -> 70.335 | Q19: 1
A20: 天门 | B20: 天门市政府办公室 | C20: 文字综合岗 | D20: 14230202016001004 | E20: 1 | F20: 熊倩 | G20: 女 | H20: 142100102927 | I20: 54.4 | J20: 63.5 | M20: 58.495 | O20: 81.8 | P20: =M20/2+O20/2 -> 70.1475 | Q20: 2
A21: 天门 | B21: 天门市政府办公室 | C21: 文字综合岗 | D21: 14230202016001004 | E21: 1 | F21: 赵雅格 | G21: 女 | H21: 142100104928 | I21: 49.6 | J21: 61 | M21: 54.73 | O21: 79.8 | P21: =M21/2+O21/2 -> 67.265 | Q21: 3
A23: 天门 | B23: 天门市发展和改革委员会 | C23: 综合管理岗1 | D23: 14230202016001005 | E23: 1 | F23: 江恒 | G23: 男 | H23: 142100201025 | I23: 68.8 | J23: 57.5 | M23: 63.715 | O23: 77 | P23: =M23/2+O23/2 -> 70.3575 | Q23: 1
A24: 天门 | B24: 天门市发展和改革委员会 | C24: 综合管理岗1 | D24: 14230202016001005 | E24: 1 | F24: 李妍仪 | G24: 女 | H24: 142100102424 | I24: 72 | J24: 53 | M24: 63.45 | O24: 74.2 | P24: =M24/2+O24/2 -> 68.825 | Q24: 2
A25: 天门 | B25: 天门市发展和改革委员会 | C25: 综合管理岗1 | D25: 14230202016001005 | E25: 1 | F25: 代伟涛 | G25: 男 | H25: 142100101326 | I25: 69.6 | J25: 52.5 | M25: 61.905 | O25: 73.2 | P25: =M25/2+O25/2 -> 67.5525 | Q25: 3
A27: 天门 | B27: 天门市发展和改革委员会 | C27: 综合管理岗2 | D27: 14230202016001006 | E27: 2 | F27: 曹雨寒 | G27: 男 | H27: 142100200106 | I27: 74.4 | J27: 57.5 | M27: 66.795 | O27: 83.8 | P27: =M27/2+O27/2 -> 75.2975 | Q27: 1
A28: 天门 | B28: 天门市发展和改革委员会 | C28: 综合管理岗2 | D28: 14230202016001006 | E28: 2 | F28: 李婉 | G28: 女 | H28: 142100200103 | I28: 66.4 | J28: 61 | M28: 63.97 | O28: 85.8 | P28: =M28/2+O28/2 -> 74.885 | Q28: 2
A29: 天门 | B29: 天门市发展和改革委员会 | C29: 综合管理岗2 | D29: 14230202016001006 | E29: 2 | F29: 钟小雪 | G29: 女 | H29: 142100104013 | I29: 66.4 | J29: 56 | M29: 61.72 | O29: 86.2 | P29: =M29/2+O29/2 -> 73.96 | Q29: 3
A30: 天门 | B30: 天门市发展和改革委员会 | C30: 综合管理岗2 | D30: 14230202016001006 | E30: 2 | F30: 文斌 | G30: 男 | H30: 142100202623 | I30: 68 | J30: 54 | M30: 61.7 | O30: 84.4 | P30: =M30/2+O30/2 -> 73.05 | Q30: 4
A31: 天门 | B31: 天门市发展和改革委员会 | C31: 综合管理岗2 | D31: 14230202016001006 | E31: 2 | F31: 施晴 | G31: 女 | H31: 142100202103 | I31: 68 | J31: 58 | M31: 63.5 | O31: 81 | P31: =M31/2+O31/2 -> 72.25 | Q31: 5
A32: 天门 | B32: 天门市发展和改革委员会 | C32: 综合管理岗2 | D32: 14230202016001006 | E32: 2 | F32: 李博成 | G32: 男 | H32: 142100105130 | I32: 67.2 | J32: 59 | M32: 63.51 | O32: 缺考 | Q32: 6
A34: 天门 | B34: 天门市发展和改革委员会 | C34: 综合管理岗3 | D34: 14230202016001007 | E34: 1 | F34: 马子琦 | G34: 男 | H34: 142100104903 | I34: 69.6 | J34: 66.5 | M34: 68.205 | O34: 82.4 | P34: =M34/2+O34/2 -> 75.3025 | Q34: 1
A35: 天门 | B35: 天门市发展和改革委员会 | C35: 综合管理岗3 | D35: 14230202016001007 | E35: 1 | F35: 冯昊 | G35: 男 | H35: 142100203609 | I35: 63.2 | J35: 55 | M35: 59.51 | O35: 79.6 | P35: =M35/2+O35/2 -> 69.555 | Q35: 2
A36: 天门 | B36: 天门市发展和改革委员会 | C36: 综合管理岗3 | D36: 14230202016001007 | E36: 1 | F36: 孙婧琦 | G36: 女 | H36: 142100200125 | I36: 56.8 | J36: 58 | M36: 57.34 | O36: 77.6 | P36: =M36/2+O36/2 -> 67.47 | Q36: 3
A38: 天门 | B38: 天门市教育局 | C38: 综合管理岗1 | D38: 14230202016001008 | E38: 1 | F38: 宗雨萌 | G38: 女 | H38: 142100102722 | I38: 55.2 | J38: 55 | M38: 55.11 | O38: 81.9 | P38: =M38/2+O38/2 -> 68.505 | Q38: 1
A39: 天门 | B39: 天门市教育局 | C39: 综合管理岗1 | D39: 14230202016001008 | E39: 1 | F39: 严倩 | G39: 女 | H39: 142100202614 | I39: 56.8 | J39: 51 | M39: 54.19 | O39: 80.4 | P39: =M39/2+O39/2 -> 67.295 | Q39: 2
A40: 天门 | B40: 天门市教育局 | C40: 综合管理岗1 | D40: 14230202016001008 | E40: 1 | F40: 程钰如 | G40: 女 | H40: 142100102330 | I40: 55.2 | J40: 53.5 | M40: 54.435 | O40: 79.8 | P40: =M40/2+O40/2 -> 67.1175 | Q40: 3
A42: 天门 | B42: 天门市科学技术局 | C42: 办公室综合岗 | D42: 14230202016001010 | E42: 1 | F42: 余思维 | G42: 女 | H42: 142100204119 | I42: 72 | J42: 55 | M42: 64.35 | O42: 82.6 | P42: =M42/2+O42/2 -> 73.475 | Q42: 1
A43: 天门 | B43: 天门市科学技术局 | C43: 办公室综合岗 | D43: 14230202016001010 | E43: 1 | F43: 陈晗月 | G43: 女 | H43: 142100202118 | I43: 64 | J43: 53 | M43: 59.05 | O43: 81.8 | P43: =M43/2+O43/2 -> 70.425 | Q43: 2
A44: 天门 | B44: 天门市科学技术局 | C44: 办公室综合岗 | D44: 14230202016001010 | E44: 1 | F44: 杜万莉 | G44: 女 | H44: 142100201225 | I44: 76.8 | J44: 53 | M44: 66.09 | O44: 缺考 | Q44: 3
A46: 天门 | B46: 天门市经济和信息化局 | C46: 综合管理岗 | D46: 14230202016001011 | E46: 1 | F46: 甘傲 | G46: 男 | H46: 142100204201 | I46: 68 | J46: 53.5 | M46: 61.475 | O46: 81.8 | P46: =M46/2+O46/2 -> 71.6375 | Q46: 1
A47: 天门 | B47: 天门市经济和信息化局 | C47: 综合管理岗 | D47: 14230202016001011 | E47: 1 | F47: 刘子健 | G47: 男 | H47: 142100103917 | I47: 60 | J47: 63 | M47: 61.35 | O47: 78.8 | P47: =M47/2+O47/2 -> 70.075 | Q47: 2
A48: 天门 | B48: 天门市经济和信息化局 | C48: 综合管理岗 | D48: 14230202016001011 | E48: 1 | F48: 韩文康 | G48: 男 | H48: 142100103120 | I48: 67.2 | J48: 53 | M48: 60.81 | O48: 78.7 | P48: =M48/2+O48/2 -> 69.755 | Q48: 3
A50: 天门 | B50: 天门市民政局 | C50: 文字综合岗 | D50: 14230202016001012 | E50: 1 | F50: 罗烨青 | G50: 男 | H50: 142100201321 | I50: 72.8 | J50: 44 | M50: 59.84 | O50: 81.8 | P50: =M50/2+O50/2 -> 70.82 | Q50: 1
A51: 天门 | B51: 天门市民政局 | C51: 文字综合岗 | D51: 14230202016001012 | E51: 1 | F51: 李子涵 | G51: 女 | H51: 142100203723 | I51: 56.8 | J51: 56 | M51: 56.44 | O51: 77.2 | P51: =M51/2+O51/2 -> 66.82 | Q51: 2
A52: 天门 | B52: 天门市民政局 | C52: 文字综合岗 | D52: 14230202016001012 | E52: 1 | F52: 周芬 | G52: 女 | H52: 142100103816 | I52: 51.2 | J52: 55.5 | M52: 53.135 | O52: 74.9 | P52: =M52/2+O52/2 -> 64.0175 | Q52: 3
A54: 天门 | B54: 天门市民政局 | C54: 综合业务岗 | D54: 14230202016001013 | E54: 1 | F54: 冯怡 | G54: 女 | H54: 142100102705 | I54: 80.8 | J54: 59.5 | M54: 71.215 | O54: 79.1 | P54: =M54/2+O54/2 -> 75.1575 | Q54: 1
A55: 天门 | B55: 天门市民政局 | C55: 综合业务岗 | D55: 14230202016001013 | E55: 1 | F55: 朱明月 | G55: 女 | H55: 142100105929 | I55: 64.8 | J55: 62 | M55: 63.54 | O55: 79.5 | P55: =M55/2+O55/2 -> 71.52 | Q55: 2
A56: 天门 | B56: 天门市民政局 | C56: 综合业务岗 | D56: 14230202016001013 | E56: 1 | F56: 罗兰萍 | G56: 女 | H56: 142100101129 | I56: 70.4 | J56: 60.5 | M56: 65.945 | O56: 73.8 | P56: =M56/2+O56/2 -> 69.8725 | Q56: 3
A58: 天门 | B58: 天门市司法局 | C58: 司法行政综合岗 | D58: 14230202016001014 | E58: 1 | F58: 李玮 | G58: 女 | H58: 142100202304 | I58: 70.4 | J58: 59.5 | M58: 65.495 | O58: 77.6 | P58: =M58/2+O58/2 -> 71.5475 | Q58: 1
A59: 天门 | B59: 天门市司法局 | C59: 司法行政综合岗 | D59: 14230202016001014 | E59: 1 | F59: 李林昕 | G59: 女 | H59: 142100101517 | I59: 56.8 | J59: 57 | M59: 56.89 | O59: 78.4 | P59: =M59/2+O59/2 -> 67.645 | Q59: 2
A60: 天门 | B60: 天门市司法局 | C60: 司法行政综合岗 | D60: 14230202016001014 | E60: 1 | F60: 杨文迪 | G60: 女 | H60: 142100203625 | I60: 63.2 | J60: 49.5 | M60: 57.035 | O60: 70.6 | P60: =M60/2+O60/2 -> 63.8175 | Q60: 3
A62: 天门 | B62: 天门市司法局 | C62: 乡镇司法所行政岗2 | D62: 14230202016001016 | E62: 2 | F62: 黄冲 | G62: 男 | H62: 142100100801 | I62: 64.8 | J62: 61.5 | M62: 63.315 | O62: 84.8 | P62: =M62/2+O62/2 -> 74.0575 | Q62: 1
A63: 天门 | B63: 天门市司法局 | C63: 乡镇司法所行政岗2 | D63: 14230202016001016 | E63: 2 | F63: 杨露露 | G63: 女 | H63: 142100200326 | I63: 64.8 | J63: 62.5 | M63: 63.765 | O63: 83.4 | P63: 73.5825 | Q63: 2
A64: 天门 | B64: 天门市司法局 | C64: 乡镇司法所行政岗2 | D64: 14230202016001016 | E64: 2 | F64: 王丹妮 | G64: 女 | H64: 142100102106 | I64: 67.2 | J64: 59 | M64: 63.51 | O64: 80.8 | P64: 72.155 | Q64: 3
A65: 天门 | B65: 天门市司法局 | C65: 乡镇司法所行政岗2 | D65: 14230202016001016 | E65: 2 | F65: 谭园 | G65: 女 | H65: 142100202803 | I65: 64.8 | J65: 57 | M65: 61.29 | O65: 83 | P65: 72.145 | Q65: 4
A66: 天门 | B66: 天门市司法局 | C66: 乡镇司法所行政岗2 | D66: 14230202016001016 | E66: 2 | F66: 谭鹏 | G66: 男 | H66: 142100106013 | I66: 68 | J66: 63.5 | M66: 65.975 | O66: 78 | P66: 71.9875 | Q66: 5
A67: 天门 | B67: 天门市司法局 | C67: 乡镇司法所行政岗2 | D67: 14230202016001016 | E67: 2 | F67: 姜壮 | G67: 男 | H67: 142100204321 | I67: 65.6 | J67: 56 | M67: 61.28 | O67: 78.2 | P67: 69.74 | Q67: 6
A69: 天门 | B69: 天门市财政局 | C69: 信息技术岗 | D69: 14230202016001017 | E69: 1 | F69: 邓起俊 | G69: 男 | H69: 142100102917 | I69: 63.2 | J69: 64 | M69: 63.56 | O69: 82.2 | P69: =M69/2+O69/2 -> 72.88 | Q69: 1
A70: 天门 | B70: 天门市财政局 | C70: 信息技术岗 | D70: 14230202016001017 | E70: 1 | F70: 黄佳贝 | G70: 男 | H70: 142100102321 | I70: 68 | J70: 58 | M70: 63.5 | O70: 81.8 | P70: =M70/2+O70/2 -> 72.65 | Q70: 2
A71: 天门 | B71: 天门市财政局 | C71: 信息技术岗 | D71: 14230202016001017 | E71: 1 | F71: 史宗豪 | G71: 男 | H71: 142100200306 | I71: 64 | J71: 58.5 | M71: 61.525 | O71: 81.6 | P71: =M71/2+O71/2 -> 71.5625 | Q71: 3
A73: 天门 | B73: 天门市财政局 | C73: 财务会计岗 | D73: 14230202016001018 | E73: 1 | F73: 王锐 | G73: 男 | H73: 142100204320 | I73: 72.8 | J73: 48.5 | M73: 61.865 | O73: 86.8 | P73: =M73/2+O73/2 -> 74.3325 | Q73: 1
A74: 天门 | B74: 天门市财政局 | C74: 财务会计岗 | D74: 14230202016001018 | E74: 1 | F74: 张若梅 | G74: 女 | H74: 142100204006 | I74: 66.4 | J74: 59 | M74: 63.07 | O74: 81.6 | P74: =M74/2+O74/2 -> 72.335 | Q74: 2
A75: 天门 | B75: 天门市财政局 | C75: 财务会计岗 | D75: 14230202016001018 | E75: 1 | F75: 胡琛 | G75: 男 | H75: 142100102030 | I75: 68 | J75: 57 | M75: 63.05 | O75: 80.2 | P75: =M75/2+O75/2 -> 71.625 | Q75: 3
A77: 天门 | B77: 天门市财政局 | C77: 文字综合岗 | D77: 14230202016001019 | E77: 1 | F77: 代颖婕 | G77: 女 | H77: 142100102507 | I77: 67.2 | J77: 64.5 | M77: 65.985 | O77: 81 | P77: =M77/2+O77/2 -> 73.4925 | Q77: 1
A78: 天门 | B78: 天门市财政局 | C78: 文字综合岗 | D78: 14230202016001019 | E78: 1 | F78: 周斌 | G78: 男 | H78: 142100101617 | I78: 69.6 | J78: 55 | M78: 63.03 | O78: 80.2 | P78: =M78/2+O78/2 -> 71.615 | Q78: 2
A79: 天门 | B79: 天门市财政局 | C79: 文字综合岗 | D79: 14230202016001019 | E79: 1 | F79: 徐康锦 | G79: 男 | H79: 142100104926 | I79: 57.6 | J79: 60 | M79: 58.68 | O79: 75.2 | P79: =M79/2+O79/2 -> 66.94 | Q79: 3
A81: 天门 | B81: 天门市人力资源和社会保障局 | C81: 财务会计岗 | D81: 14230202016001020 | E81: 1 | F81: 李阳祉 | G81: 女 | H81: 142100201807 | I81: 66.4 | J81: 64 | M81: 65.32 | O81: 82.8 | P81: =M81/2+O81/2 -> 74.06 | Q81: 1
A82: 天门 | B82: 天门市人力资源和社会保障局 | C82: 财务会计岗 | D82: 14230202016001020 | E82: 1 | F82: 曾雨雁 | G82: 女 | H82: 142100104620 | I82: 74.4 | J82: 49.5 | M82: 63.195 | O82: 81.9 | P82: =M82/2+O82/2 -> 72.5475 | Q82: 2
A83: 天门 | B83: 天门市人力资源和社会保障局 | C83: 财务会计岗 | D83: 14230202016001020 | E83: 1 | F83: 王奎 | G83: 男 | H83: 142100204004 | I83: 64.8 | J83: 58 | M83: 61.74 | O83: 82.4 | P83: =M83/2+O83/2 -> 72.07 | Q83: 3
A85: 天门 | B85: 天门市人力资源和社会保障局 | C85: 综合管理岗 | D85: 14230202016001021 | E85: 1 | F85: 李馨 | G85: 女 | H85: 142100105622 | I85: 67.2 | J85: 62.5 | M85: 65.085 | O85: 78.8 | P85: =M85/2+O85/2 -> 71.9425 | Q85: 1
A86: 天门 | B86: 天门市人力资源和社会保障局 | C86: 综合管理岗 | D86: 14230202016001021 | E86: 1 | F86: 李露 | G86: 女 | H86: 142100101801 | I86: 56.8 | J86: 55 | M86: 55.99 | O86: 78.6 | P86: =M86/2+O86/2 -> 67.295 | Q86: 2
A87: 天门 | B87: 天门市人力资源和社会保障局 | C87: 综合管理岗 | D87: 14230202016001021 | E87: 1 | F87: 何琪 | G87: 女 | H87: 142100101502 | I87: 58.4 | J87: 49.5 | M87: 54.395 | O87: 缺考 | Q87: 3
A89: 天门 | B89: 天门市自然资源和规划局 | C89: 综合管理岗1 | D89: 14230202016001022 | E89: 1 | F89: 何远秦 | G89: 男 | H89: 142100101325 | I89: 68.8 | J89: 54 | M89: 62.14 | O89: 81 | P89: =M89/2+O89/2 -> 71.57 | Q89: 1
A90: 天门 | B90: 天门市自然资源和规划局 | C90: 综合管理岗1 | D90: 14230202016001022 | E90: 1 | F90: 杨明 | G90: 男 | H90: 142100103315 | I90: 57.6 | J90: 50.5 | M90: 54.405 | O90: 79 | P90: =M90/2+O90/2 -> 66.7025 | Q90: 2
A91: 天门 | B91: 天门市自然资源和规划局 | C91: 综合管理岗1 | D91: 14230202016001022 | E91: 1 | F91: 韩梁 | G91: 男 | H91: 142100201222 | I91: 52.8 | J91: 45.5 | M91: 49.515 | O91: 73.2 | P91: =M91/2+O91/2 -> 61.3575 | Q91: 3
A93: 天门 | B93: 天门市自然资源和规划局 | C93: 综合管理岗2 | D93: 14230202016001023 | E93: 1 | F93: 王佳怡 | G93: 女 | H93: 142100200529 | I93: 74.4 | J93: 54.5 | M93: 65.445 | O93: 86.2 | P93: =M93/2+O93/2 -> 75.8225 | Q93: 1
A94: 天门 | B94: 天门市自然资源和规划局 | C94: 综合管理岗2 | D94: 14230202016001023 | E94: 1 | F94: 高泽 | G94: 男 | H94: 142100201914 | I94: 68.8 | J94: 56 | M94: 63.04 | O94: 79 | P94: =M94/2+O94/2 -> 71.02 | Q94: 2
A95: 天门 | B95: 天门市自然资源和规划局 | C95: 综合管理岗2 | D95: 14230202016001023 | E95: 1 | F95: 周鸿胜 | G95: 男 | H95: 142100200321 | I95: 64.8 | J95: 59.5 | M95: 62.415 | O95: 77.8 | P95: =M95/2+O95/2 -> 70.1075 | Q95: 3
A97: 天门 | B97: 天门市自然资源和规划局 | C97: 综合管理岗3 | D97: 14230202016001024 | E97: 1 | F97: 李伟夫 | G97: 男 | H97: 142100102901 | I97: 77.6 | J97: 59 | M97: 69.23 | O97: 82.2 | P97: =M97/2+O97/2 -> 75.715 | Q97: 1
A98: 天门 | B98: 天门市自然资源和规划局 | C98: 综合管理岗3 | D98: 14230202016001024 | E98: 1 | F98: 黄沁悦 | G98: 女 | H98: 142100105907 | I98: 70.4 | J98: 60.5 | M98: 65.945 | O98: 82.6 | P98: =M98/2+O98/2 -> 74.2725 | Q98: 2
A99: 天门 | B99: 天门市自然资源和规划局 | C99: 综合管理岗3 | D99: 14230202016001024 | E99: 1 | F99: 乔冰洁 | G99: 女 | H99: 142100204124 | I99: 69.6 | J99: 63 | M99: 66.63 | O99: 75.8 | P99: =M99/2+O99/2 -> 71.215 | Q99: 3
A101: 天门 | B101: 天门市自然资源和规划局 | C101: 信息技术岗 | D101: 14230202016001025 | E101: 1 | F101: 刘冰 | G101: 男 | H101: 142100201624 | I101: 72 | J101: 58 | M101: 65.7 | O101: 84.6 | P101: =M101/2+O101/2 -> 75.15 | Q101: 1
A102: 天门 | B102: 天门市自然资源和规划局 | C102: 信息技术岗 | D102: 14230202016001025 | E102: 1 | F102: 李旭东 | G102: 男 | H102: 142100103704 | I102: 69.6 | J102: 57.5 | M102: 64.155 | O102: 82.2 | P102: =M102/2+O102/2 -> 73.1775 | Q102: 2
A103: 天门 | B103: 天门市自然资源和规划局 | C103: 信息技术岗 | D103: 14230202016001025 | E103: 1 | F103: 刘博雅 | G103: 女 | H103: 142100101527 | I103: 68 | J103: 57.5 | M103: 63.275 | O103: 80.2 | P103: =M103/2+O103/2 -> 71.7375 | Q103: 3
A105: 天门 | B105: 天门市生态环境局 | C105: 综合管理岗 | D105: 14230202016001026 | E105: 1 | F105: 徐诗琪 | G105: 女 | H105: 142100200602 | I105: 72.8 | J105: 59.5 | M105: 66.815 | O105: 74.4 | P105: =M105/2+O105/2 -> 70.6075 | Q105: 1
A106: 天门 | B106: 天门市生态环境局 | C106: 综合管理岗 | D106: 14230202016001026 | E106: 1 | F106: 朱澳 | G106: 女 | H106: 142100100328 | I106: 64 | J106: 57 | M106: 60.85 | O106: 78.6 | P106: =M106/2+O106/2 -> 69.725 | Q106: 2
A107: 天门 | B107: 天门市生态环境局 | C107: 综合管理岗 | D107: 14230202016001026 | E107: 1 | F107: 蔡景琦 | G107: 男 | H107: 142100103507 | I107: 75.2 | J107: 44 | M107: 61.16 | O107: 77.6 | P107: =M107/2+O107/2 -> 69.38 | Q107: 3
A109: 天门 | B109: 天门市住房和城乡建设局 | C109: 财务会计岗 | D109: 14230202016001027 | E109: 1 | F109: 周伟 | G109: 男 | H109: 142100201906 | I109: 63.2 | J109: 62 | M109: 62.66 | O109: 81.4 | P109: =M109/2+O109/2 -> 72.03 | Q109: 1
A110: 天门 | B110: 天门市住房和城乡建设局 | C110: 财务会计岗 | D110: 14230202016001027 | E110: 1 | F110: 沈倩 | G110: 女 | H110: 142100100621 | I110: 70.4 | J110: 56 | M110: 63.92 | O110: 79.6 | P110: =M110/2+O110/2 -> 71.76 | Q110: 2
A111: 天门 | B111: 天门市住房和城乡建设局 | C111: 财务会计岗 | D111: 14230202016001027 | E111: 1 | F111: 倪艺家 | G111: 女 | H111: 142100102310 | I111: 68 | J111: 57.5 | M111: 63.275 | O111: 74.4 | P111: =M111/2+O111/2 -> 68.8375 | Q111: 3
A113: 天门 | B113: 天门市交通运输局 | C113: 财务会计岗 | D113: 14230202016001028 | E113: 1 | F113: 聂佳慧 | G113: 女 | H113: 142100201311 | I113: 73.6 | J113: 58 | M113: 66.58 | O113: 78.1 | P113: =M113/2+O113/2 -> 72.34 | Q113: 1
A114: 天门 | B114: 天门市交通运输局 | C114: 财务会计岗 | D114: 14230202016001028 | E114: 1 | F114: 王晨晨 | G114: 女 | H114: 142100100810 | I114: 68 | J114: 55.5 | M114: 62.375 | O114: 78.2 | P114: =M114/2+O114/2 -> 70.2875 | Q114: 2
A115: 天门 | B115: 天门市交通运输局 | C115: 财务会计岗 | D115: 14230202016001028 | E115: 1 | F115: 林欣艳 | G115: 女 | H115: 142100104726 | I115: 60.8 | J115: 64 | M115: 62.24 | O115: 缺考 | Q115: 3
A117: 天门 | B117: 天门市水利和湖泊局 | C117: 综合管理岗 | D117: 14230202016001029 | E117: 1 | F117: 蒋佩 | G117: 女 | H117: 142100102430 | I117: 58.4 | J117: 53 | M117: 55.97 | O117: 80.2 | P117: =M117/2+O117/2 -> 68.085 | Q117: 1
A118: 天门 | B118: 天门市水利和湖泊局 | C118: 综合管理岗 | D118: 14230202016001029 | E118: 1 | F118: 马玮 | G118: 女 | H118: 142100200802 | I118: 61.6 | J118: 47.5 | M118: 55.255 | O118: 80.4 | P118: =M118/2+O118/2 -> 67.8275 | Q118: 2
A119: 天门 | B119: 天门市水利和湖泊局 | C119: 综合管理岗 | D119: 14230202016001029 | E119: 1 | F119: 许景 | G119: 女 | H119: 142100100619 | I119: 52.8 | J119: 64.5 | M119: 58.065 | O119: 75.6 | P119: =M119/2+O119/2 -> 66.8325 | Q119: 3
A121: 天门 | B121: 天门市水利和湖泊局 | C121: 信息技术岗 | D121: 14230202016001030 | E121: 1 | F121: 陈兴庆 | G121: 女 | H121: 142100102703 | I121: 72 | J121: 62 | M121: 67.5 | O121: 79.3 | P121: =M121/2+O121/2 -> 73.4 | Q121: 1
A122: 天门 | B122: 天门市水利和湖泊局 | C122: 信息技术岗 | D122: 14230202016001030 | E122: 1 | F122: 高晨 | G122: 男 | H122: 142100100518 | I122: 63.2 | J122: 58.5 | M122: 61.085 | O122: 75.4 | P122: =M122/2+O122/2 -> 68.2425 | Q122: 2
A123: 天门 | B123: 天门市水利和湖泊局 | C123: 信息技术岗 | D123: 14230202016001030 | E123: 1 | F123: 宋羽妍 | G123: 女 | H123: 142100203618 | I123: 64.8 | J123: 56 | M123: 60.84 | O123: 73.6 | P123: =M123/2+O123/2 -> 67.22 | Q123: 3
A125: 天门 | B125: 天门市水利和湖泊局 | C125: 政策法规岗 | D125: 14230202016001031 | E125: 1 | F125: 王芳 | G125: 女 | H125: 142100102717 | I125: 62.4 | J125: 55.5 | M125: 59.295 | O125: 82.6 | P125: =M125/2+O125/2 -> 70.9475 | Q125: 1
A126: 天门 | B126: 天门市水利和湖泊局 | C126: 政策法规岗 | D126: 14230202016001031 | E126: 1 | F126: 李纯 | G126: 女 | H126: 142100202013 | I126: 56.8 | J126: 64.5 | M126: 60.265 | O126: 77.8 | P126: =M126/2+O126/2 -> 69.0325 | Q126: 2
A127: 天门 | B127: 天门市水利和湖泊局 | C127: 政策法规岗 | D127: 14230202016001031 | E127: 1 | F127: 彭莎 | G127: 女 | H127: 142100202016 | I127: 63.2 | J127: 52.5 | M127: 58.385 | O127: 78.6 | P127: =M127/2+O127/2 -> 68.4925 | Q127: 3
A129: 天门 | B129: 天门市农业农村局 | C129: 种植技术岗 | D129: 14230202016001032 | E129: 1 | F129: 余明志 | G129: 男 | H129: 142100202420 | I129: 67.2 | J129: 50.5 | M129: 59.685 | O129: 79.6 | P129: =M129/2+O129/2 -> 69.6425 | Q129: 1
A130: 天门 | B130: 天门市农业农村局 | C130: 种植技术岗 | D130: 14230202016001032 | E130: 1 | F130: 文小卉 | G130: 女 | H130: 142100102109 | I130: 61.6 | J130: 51.5 | M130: 57.055 | O130: 74.9 | P130: =M130/2+O130/2 -> 65.9775 | Q130: 2
A131: 天门 | B131: 天门市农业农村局 | C131: 种植技术岗 | D131: 14230202016001032 | E131: 1 | F131: 唐子涵 | G131: 女 | H131: 142100100427 | I131: 63.2 | J131: 64 | M131: 63.56 | O131: 缺考 | Q131: 3
A133: 天门 | B133: 天门市农业农村局 | C133: 农业推广岗 | D133: 14230202016001033 | E133: 1 | F133: 高景 | G133: 男 | H133: 142100105516 | I133: 64.8 | J133: 61.5 | M133: 63.315 | O133: 82.7 | P133: =M133/2+O133/2 -> 73.0075 | Q133: 1
A134: 天门 | B134: 天门市农业农村局 | C134: 农业推广岗 | D134: 14230202016001033 | E134: 1 | F134: 刘静文 | G134: 女 | H134: 142100202218 | I134: 64 | J134: 52 | M134: 58.6 | O134: 84.8 | P134: =M134/2+O134/2 -> 71.7 | Q134: 2
A135: 天门 | B135: 天门市农业农村局 | C135: 农业推广岗 | D135: 14230202016001033 | E135: 1 | F135: 冯杰敏 | G135: 男 | H135: 142100101005 | I135: 63.2 | J135: 48 | M135: 56.36 | O135: 52 | P135: =M135/2+O135/2 -> 54.18 | Q135: 3
A137: 天门 | B137: 天门市商务局 | C137: 综合业务岗1 | D137: 14230202016001034 | E137: 1 | F137: 游语嫣 | G137: 女 | H137: 142100105014 | I137: 59.2 | J137: 59.5 | M137: 59.335 | O137: 86.2 | P137: =M137/2+O137/2 -> 72.7675 | Q137: 1
A138: 天门 | B138: 天门市商务局 | C138: 综合业务岗1 | D138: 14230202016001034 | E138: 1 | F138: 胡晶晶 | G138: 女 | H138: 142100101730 | I138: 68 | J138: 52 | M138: 60.8 | O138: 84.4 | P138: =M138/2+O138/2 -> 72.6 | Q138: 2
A139: 天门 | B139: 天门市商务局 | C139: 综合业务岗1 | D139: 14230202016001034 | E139: 1 | F139: 许婉婷 | G139: 女 | H139: 142100202123 | I139: 57.6 | J139: 57.5 | M139: 57.555 | O139: 77.7 | P139: =M139/2+O139/2 -> 67.6275 | Q139: 3
A141: 天门 | B141: 天门市商务局 | C141: 综合业务岗2 | D141: 14230202016001035 | E141: 1 | F141: 汪泽羽 | G141: 女 | H141: 142100105602 | I141: 76 | J141: 56.5 | M141: 67.225 | O141: 81 | P141: =M141/2+O141/2 -> 74.1125 | Q141: 1
A142: 天门 | B142: 天门市商务局 | C142: 综合业务岗2 | D142: 14230202016001035 | E142: 1 | F142: 付一凡 | G142: 男 | H142: 142100103209 | I142: 72.8 | J142: 60.5 | M142: 67.265 | O142: 77.9 | P142: =M142/2+O142/2 -> 72.5825 | Q142: 2
A143: 天门 | B143: 天门市商务局 | C143: 综合业务岗2 | D143: 14230202016001035 | E143: 1 | F143: 肖亭 | G143: 女 | H143: 142100204305 | I143: 66.4 | J143: 62 | M143: 64.42 | O143: 80.6 | P143: =M143/2+O143/2 -> 72.51 | Q143: 3
A145: 天门 | B145: 天门市文化和旅游局 | C145: 办公室综合岗1 | D145: 14230202016001036 | E145: 1 | F145: 杨茁 | G145: 女 | H145: 142100201126 | I145: 66.4 | J145: 62.5 | M145: 64.645 | O145: 79.8 | P145: =M145/2+O145/2 -> 72.2225 | Q145: 1
A146: 天门 | B146: 天门市文化和旅游局 | C146: 办公室综合岗1 | D146: 14230202016001036 | E146: 1 | F146: 谢小龙 | G146: 男 | H146: 142100104103 | I146: 60.8 | J146: 53.5 | M146: 57.515 | O146: 83.86 | P146: =M146/2+O146/2 -> 70.6875 | Q146: 2
A147: 天门 | B147: 天门市文化和旅游局 | C147: 办公室综合岗1 | D147: 14230202016001036 | E147: 1 | F147: 谭婷 | G147: 女 | H147: 142100201712 | I147: 55.2 | J147: 58.5 | M147: 56.685 | O147: 76.6 | P147: =M147/2+O147/2 -> 66.6425 | Q147: 3
A149: 天门 | B149: 天门市卫生和健康委员会 | C149: 办公室管理岗 | D149: 14230202016001038 | E149: 1 | F149: 温漫 | G149: 女 | H149: 142100203701 | I149: 57.6 | J149: 62 | M149: 59.58 | O149: 81.8 | P149: =M149/2+O149/2 -> 70.69 | Q149: 1
A150: 天门 | B150: 天门市卫生和健康委员会 | C150: 办公室管理岗 | D150: 14230202016001038 | E150: 1 | F150: 王语桐 | G150: 女 | H150: 142100203624 | I150: 63.2 | J150: 52.5 | M150: 58.385 | O150: 78.9 | P150: =M150/2+O150/2 -> 68.6425 | Q150: 2
A151: 天门 | B151: 天门市卫生和健康委员会 | C151: 办公室管理岗 | D151: 14230202016001038 | E151: 1 | F151: 黄燕 | G151: 女 | H151: 142100105005 | I151: 58.4 | J151: 49.5 | M151: 54.395 | O151: 79.2 | P151: =M151/2+O151/2 -> 66.7975 | Q151: 3
A153: 天门 | B153: 天门市卫生和健康委员会 | C153: 综合业务管理岗1 | D153: 14230202016001039 | E153: 3 | F153: 邵一洹 | G153: 男 | H153: 142100201711 | I153: 76 | J153: 55.5 | M153: 66.775 | O153: 86 | P153: =M153/2+O153/2 -> 76.3875 | Q153: 1
A154: 天门 | B154: 天门市卫生和健康委员会 | C154: 综合业务管理岗1 | D154: 14230202016001039 | E154: 3 | F154: 刘江南 | G154: 女 | H154: 142100101313 | I154: 61.6 | J154: 57.5 | M154: 59.755 | O154: 83.6 | P154: 71.6775 | Q154: 2
A155: 天门 | B155: 天门市卫生和健康委员会 | C155: 综合业务管理岗1 | D155: 14230202016001039 | E155: 3 | F155: 章春雪 | G155: 女 | H155: 142100202718 | I155: 64.8 | J155: 52.5 | M155: 59.265 | O155: 83.6 | P155: 71.4325 | Q155: 3
A156: 天门 | B156: 天门市卫生和健康委员会 | C156: 综合业务管理岗1 | D156: 14230202016001039 | E156: 3 | F156: 张彬 | G156: 女 | H156: 142100200327 | I156: 65.6 | J156: 59.5 | M156: 62.855 | O156: 79.8 | P156: 71.3275 | Q156: 4
A157: 天门 | B157: 天门市卫生和健康委员会 | C157: 综合业务管理岗1 | D157: 14230202016001039 | E157: 3 | F157: 范红宇 | G157: 女 | H157: 142100100523 | I157: 64 | J157: 59 | M157: 61.75 | O157: 77.4 | P157: 69.575 | Q157: 5
A158: 天门 | B158: 天门市卫生和健康委员会 | C158: 综合业务管理岗1 | D158: 14230202016001039 | E158: 3 | F158: 胡延淞 | G158: 男 | H158: 142100101217 | I158: 66.4 | J158: 52 | M158: 59.92 | O158: 79.2 | P158: 69.56 | Q158: 6
A159: 天门 | B159: 天门市卫生和健康委员会 | C159: 综合业务管理岗1 | D159: 14230202016001039 | E159: 3 | F159: 刘星月 | G159: 女 | H159: 142100100205 | I159: 64.8 | J159: 57.5 | M159: 61.515 | O159: 77.2 | P159: 69.3575 | Q159: 7
A160: 天门 | B160: 天门市卫生和健康委员会 | C160: 综合业务管理岗1 | D160: 14230202016001039 | E160: 3 | F160: 姚英健 | G160: 男 | H160: 142100104623 | I160: 56.8 | J160: 61.5 | M160: 58.915 | O160: 75.8 | P160: 67.3575 | Q160: 8
A161: 天门 | B161: 天门市卫生和健康委员会 | C161: 综合业务管理岗1 | D161: 14230202016001039 | E161: 3 | F161: 阮环 | G161: 女 | H161: 142100105823 | I161: 62.4 | J161: 55.5 | M161: 59.295 | O161: 75 | P161: 67.1475 | Q161: 9
A163: 天门 | B163: 天门市卫生和健康委员会 | C163: 综合业务管理岗2 | D163: 14230202016001040 | E163: 2 | F163: 吴志旻 | G163: 男 | H163: 142100204114 | I163: 64.8 | J163: 60 | M163: 62.64 | O163: 80 | P163: =M163/2+O163/2 -> 71.32 | Q163: 1
A164: 天门 | B164: 天门市卫生和健康委员会 | C164: 综合业务管理岗2 | D164: 14230202016001040 | E164: 2 | F164: 刘欣宇 | G164: 女 | H164: 142100105807 | I164: 63.2 | J164: 53.5 | M164: 58.835 | O164: 82.6 | P164: 70.7175 | Q164: 2
A165: 天门 | B165: 天门市卫生和健康委员会 | C165: 综合业务管理岗2 | D165: 14230202016001040 | E165: 2 | F165: 秦银梦 | G165: 女 | H165: 142100203821 | I165: 69.6 | J165: 46 | M165: 58.98 | O165: 81.4 | P165: 70.19 | Q165: 3
A166: 天门 | B166: 天门市卫生和健康委员会 | C166: 综合业务管理岗2 | D166: 14230202016001040 | E166: 2 | F166: 刘伟红 | G166: 女 | H166: 142100101317 | I166: 60.8 | J166: 55.5 | M166: 58.415 | O166: 80.8 | P166: 69.6075 | Q166: 4
A167: 天门 | B167: 天门市卫生和健康委员会 | C167: 综合业务管理岗2 | D167: 14230202016001040 | E167: 2 | F167: 周苗 | G167: 女 | H167: 142100202922 | I167: 61.6 | J167: 55 | M167: 58.63 | O167: 79.2 | P167: 68.915 | Q167: 5
A168: 天门 | B168: 天门市卫生和健康委员会 | C168: 综合业务管理岗2 | D168: 14230202016001040 | E168: 2 | F168: 郑耀 | G168: 男 | H168: 142100203119 | I168: 62.4 | J168: 51 | M168: 57.27 | O168: 77 | P168: 67.135 | Q168: 6
A170: 天门 | B170: 天门市应急管理局 | C170: 业务管理岗 | D170: 14230202016001041 | E170: 1 | F170: 郭佳薇 | G170: 女 | H170: 142100104821 | I170: 69.6 | J170: 65 | M170: 67.53 | O170: 81.8 | P170: =M170/2+O170/2 -> 74.665 | Q170: 1
A171: 天门 | B171: 天门市应急管理局 | C171: 业务管理岗 | D171: 14230202016001041 | E171: 1 | F171: 董颖 | G171: 女 | H171: 142100105405 | I171: 56 | J171: 57.5 | M171: 56.675 | O171: 77.8 | P171: =M171/2+O171/2 -> 67.2375 | Q171: 2
A172: 天门 | B172: 天门市应急管理局 | C172: 业务管理岗 | D172: 14230202016001041 | E172: 1 | F172: 江卓三 | G172: 男 | H172: 142100200723 | I172: 63.2 | J172: 47.5 | M172: 56.135 | O172: 76.2 | P172: =M172/2+O172/2 -> 66.1675 | Q172: 3
A174: 天门 | B174: 天门市审计局 | C174: 财务审计岗 | D174: 14230202016001042 | E174: 1 | F174: 蒋文露 | G174: 女 | H174: 142100102112 | I174: 69.6 | J174: 59 | M174: 64.83 | O174: 81.1 | P174: =M174/2+O174/2 -> 72.965 | Q174: 1
A175: 天门 | B175: 天门市审计局 | C175: 财务审计岗 | D175: 14230202016001042 | E175: 1 | F175: 唐子聪 | G175: 男 | H175: 142100102807 | I175: 64.8 | J175: 63 | M175: 63.99 | O175: 79.4 | P175: =M175/2+O175/2 -> 71.695 | Q175: 2
A176: 天门 | B176: 天门市审计局 | C176: 财务审计岗 | D176: 14230202016001042 | E176: 1 | F176: 张劲琦 | G176: 男 | H176: 142100102520 | I176: 58.4 | J176: 61 | M176: 59.57 | O176: 81.3 | P176: =M176/2+O176/2 -> 70.435 | Q176: 3
A178: 天门 | B178: 天门市市场监督管理局 | C178: 食品监管岗 | D178: 14230202016001043 | E178: 3 | F178: 尹湘 | G178: 女 | H178: 142100103821 | I178: 70.4 | J178: 61 | M178: 66.17 | O178: 81.2 | P178: =M178/2+O178/2 -> 73.685 | Q178: 1
A179: 天门 | B179: 天门市市场监督管理局 | C179: 食品监管岗 | D179: 14230202016001043 | E179: 3 | F179: 林小慧 | G179: 女 | H179: 142100105019 | I179: 65.6 | J179: 60 | M179: 63.08 | O179: 81.4 | P179: 72.24 | Q179: 2
A180: 天门 | B180: 天门市市场监督管理局 | C180: 食品监管岗 | D180: 14230202016001043 | E180: 3 | F180: 易宏睿 | G180: 男 | H180: 142100102417 | I180: 66.4 | J180: 57.5 | M180: 62.395 | O180: 81.7 | P180: 72.0475 | Q180: 3
A181: 天门 | B181: 天门市市场监督管理局 | C181: 食品监管岗 | D181: 14230202016001043 | E181: 3 | F181: 魏明雅紫 | G181: 女 | H181: 142100103711 | I181: 60 | J181: 59.5 | M181: 59.775 | O181: 83.6 | P181: 71.6875 | Q181: 4
A182: 天门 | B182: 天门市市场监督管理局 | C182: 食品监管岗 | D182: 14230202016001043 | E182: 3 | F182: 闫靖煊 | G182: 男 | H182: 142100200318 | I182: 65.6 | J182: 60 | M182: 63.08 | O182: 79.4 | P182: 71.24 | Q182: 5
A183: 天门 | B183: 天门市市场监督管理局 | C183: 食品监管岗 | D183: 14230202016001043 | E183: 3 | F183: 高逸飞 | G183: 男 | H183: 142100101520 | I183: 64.8 | J183: 60 | M183: 62.64 | O183: 79.4 | P183: 71.02 | Q183: 6
A184: 天门 | B184: 天门市市场监督管理局 | C184: 食品监管岗 | D184: 14230202016001043 | E184: 3 | F184: 龙锐 | G184: 女 | H184: 142100201102 | I184: 64 | J184: 60.5 | M184: 62.425 | O184: 78.5 | P184: 70.4625 | Q184: 7
A185: 天门 | B185: 天门市市场监督管理局 | C185: 食品监管岗 | D185: 14230202016001043 | E185: 3 | F185: 袁港 | G185: 男 | H185: 142100203619 | I185: 68 | J185: 55 | M185: 62.15 | O185: 75.6 | P185: 68.875 | Q185: 8
A186: 天门 | B186: 天门市市场监督管理局 | C186: 食品监管岗 | D186: 14230202016001043 | E186: 3 | F186: 苏兰茜 | G186: 女 | H186: 142100200821 | I186: 60.8 | J186: 59.5 | M186: 60.215 | O186: 75.6 | P186: 67.9075 | Q186: 9
A188: 天门 | B188: 天门市市场监督管理局 | C188: 药品监管岗 | D188: 14230202016001044 | E188: 4 | F188: 张梓轩 | G188: 女 | H188: 142100104221 | I188: 76 | J188: 57 | M188: 67.45 | O188: 83 | P188: =M188/2+O188/2 -> 75.225 | Q188: 1
A189: 天门 | B189: 天门市市场监督管理局 | C189: 药品监管岗 | D189: 14230202016001044 | E189: 4 | F189: 田姝敏 | G189: 女 | H189: 142100105608 | I189: 70.4 | J189: 57 | M189: 64.37 | O189: 82.4 | P189: 73.385 | Q189: 2
A190: 天门 | B190: 天门市市场监督管理局 | C190: 药品监管岗 | D190: 14230202016001044 | E190: 4 | F190: 刘茂 | G190: 男 | H190: 142100106008 | I190: 70.4 | J190: 56 | M190: 63.92 | O190: 82.4 | P190: 73.16 | Q190: 3
A191: 天门 | B191: 天门市市场监督管理局 | C191: 药品监管岗 | D191: 14230202016001044 | E191: 4 | F191: 康科星 | G191: 女 | H191: 142100202913 | I191: 57.6 | J191: 69 | M191: 62.73 | O191: 82.6 | P191: 72.665 | Q191: 4
A192: 天门 | B192: 天门市市场监督管理局 | C192: 药品监管岗 | D192: 14230202016001044 | E192: 4 | F192: 江师轶 | G192: 男 | H192: 142100103521 | I192: 67.2 | J192: 64.5 | M192: 65.985 | O192: 78.8 | P192: 72.3925 | Q192: 5
A193: 天门 | B193: 天门市市场监督管理局 | C193: 药品监管岗 | D193: 14230202016001044 | E193: 4 | F193: 彭若琪 | G193: 女 | H193: 142100103224 | I193: 62.4 | J193: 58 | M193: 60.42 | O193: 81.4 | P193: 70.91 | Q193: 6
A194: 天门 | B194: 天门市市场监督管理局 | C194: 药品监管岗 | D194: 14230202016001044 | E194: 4 | F194: 雷蕾 | G194: 女 | H194: 142100100204 | I194: 65.6 | J194: 56 | M194: 61.28 | O194: 79.4 | P194: 70.34 | Q194: 7
A195: 天门 | B195: 天门市市场监督管理局 | C195: 药品监管岗 | D195: 14230202016001044 | E195: 4 | F195: 贺诗静 | G195: 女 | H195: 142100103919 | I195: 64 | J195: 58.5 | M195: 61.525 | O195: 78.2 | P195: 69.8625 | Q195: 8
A196: 天门 | B196: 天门市市场监督管理局 | C196: 药品监管岗 | D196: 14230202016001044 | E196: 4 | F196: 凌庆婕 | G196: 女 | H196: 142100102724 | I196: 60 | J196: 61 | M196: 60.45 | O196: 78 | P196: 69.225 | Q196: 9
A197: 天门 | B197: 天门市市场监督管理局 | C197: 药品监管岗 | D197: 14230202016001044 | E197: 4 | F197: 刘煜琛 | G197: 男 | H197: 142100102503 | I197: 66.4 | J197: 52 | M197: 59.92 | O197: 77.9 | P197: 68.91 | Q197: 10
A198: 天门 | B198: 天门市市场监督管理局 | C198: 药品监管岗 | D198: 14230202016001044 | E198: 4 | F198: 王诗雨 | G198: 女 | H198: 142100203114 | I198: 57.6 | J198: 58 | M198: 57.78 | O198: 76.4 | P198: 67.09 | Q198: 11
A199: 天门 | B199: 天门市市场监督管理局 | C199: 药品监管岗 | D199: 14230202016001044 | E199: 4 | F199: 李子琦 | G199: 男 | H199: 142100201317 | I199: 60.8 | J199: 56.5 | M199: 58.865 | O199: 72.6 | P199: 65.7325 | Q199: 12
A201: 天门 | B201: 天门市市场监督管理局 | C201: 信息技术岗 | D201: 14230202016001045 | E201: 3 | F201: 许嘉豪 | G201: 男 | H201: 142100200117 | I201: 62.4 | J201: 60 | M201: 61.32 | O201: 83.2 | P201: =M201/2+O201/2 -> 72.26 | Q201: 1
A202: 天门 | B202: 天门市市场监督管理局 | C202: 信息技术岗 | D202: 14230202016001045 | E202: 3 | F202: 吴克奇 | G202: 男 | H202: 142100202503 | I202: 67.2 | J202: 54 | M202: 61.26 | O202: 83.1 | P202: 72.18 | Q202: 2
A203: 天门 | B203: 天门市市场监督管理局 | C203: 信息技术岗 | D203: 14230202016001045 | E203: 3 | F203: 易天齐 | G203: 男 | H203: 142100201130 | I203: 61.6 | J203: 59.5 | M203: 60.655 | O203: 82.2 | P203: 71.4275 | Q203: 3
A204: 天门 | B204: 天门市市场监督管理局 | C204: 信息技术岗 | D204: 14230202016001045 | E204: 3 | F204: 祝坤 | G204: 男 | H204: 142100101308 | I204: 65.6 | J204: 57 | M204: 61.73 | O204: 80.5 | P204: 71.115 | Q204: 4
A205: 天门 | B205: 天门市市场监督管理局 | C205: 信息技术岗 | D205: 14230202016001045 | E205: 3 | F205: 蒋坦 | G205: 男 | H205: 142100203424 | I205: 68.8 | J205: 54 | M205: 62.14 | O205: 79.8 | P205: 70.97 | Q205: 5
A206: 天门 | B206: 天门市市场监督管理局 | C206: 信息技术岗 | D206: 14230202016001045 | E206: 3 | F206: 郑祖韬 | G206: 男 | H206: 142100105520 | I206: 62.4 | J206: 56 | M206: 59.52 | O206: 81.4 | P206: 70.46 | Q206: 6
A207: 天门 | B207: 天门市市场监督管理局 | C207: 信息技术岗 | D207: 14230202016001045 | E207: 3 | F207: 刘寈旭 | G207: 男 | H207: 142100103330 | I207: 61.6 | J207: 60.5 | M207: 61.105 | O207: 79.7 | P207: 70.4025 | Q207: 7
A208: 天门 | B208: 天门市市场监督管理局 | C208: 信息技术岗 | D208: 14230202016001045 | E208: 3 | F208: 程兵 | G208: 男 | H208: 142100105815 | I208: 65.6 | J208: 53 | M208: 59.93 | O208: 76.9 | P208: 68.415 | Q208: 8
A209: 天门 | B209: 天门市市场监督管理局 | C209: 信息技术岗 | D209: 14230202016001045 | E209: 3 | F209: 宋豫欣 | G209: 女 | H209: 142100101612 | I209: 78.4 | J209: 61.5 | M209: 70.795 | O209: 缺考 | Q209: 9
A211: 天门 | B211: 天门市市场监督管理局 | C211: 财务审计岗 | D211: 14230202016001046 | E211: 3 | F211: 彭婉婷 | G211: 女 | H211: 142100104713 | I211: 64.8 | J211: 57 | M211: 61.29 | O211: 85.4 | P211: =M211/2+O211/2 -> 73.345 | Q211: 1
A212: 天门 | B212: 天门市市场监督管理局 | C212: 财务审计岗 | D212: 14230202016001046 | E212: 3 | F212: 张玉蓉 | G212: 女 | H212: 142100102422 | I212: 65.6 | J212: 60 | M212: 63.08 | O212: 82.8 | P212: 72.94 | Q212: 2
A213: 天门 | B213: 天门市市场监督管理局 | C213: 财务审计岗 | D213: 14230202016001046 | E213: 3 | F213: 谢宁子 | G213: 女 | H213: 142100200319 | I213: 64 | J213: 61.5 | M213: 62.875 | O213: 82.8 | P213: 72.8375 | Q213: 3
A214: 天门 | B214: 天门市市场监督管理局 | C214: 财务审计岗 | D214: 14230202016001046 | E214: 3 | F214: 冯欣怡 | G214: 女 | H214: 142100104502 | I214: 70.4 | J214: 56 | M214: 63.92 | O214: 81.4 | P214: 72.66 | Q214: 4
A215: 天门 | B215: 天门市市场监督管理局 | C215: 财务审计岗 | D215: 14230202016001046 | E215: 3 | F215: 袁金叶 | G215: 女 | H215: 142100101702 | I215: 60 | J215: 63.5 | M215: 61.575 | O215: 83 | P215: 72.2875 | Q215: 5
A216: 天门 | B216: 天门市市场监督管理局 | C216: 财务审计岗 | D216: 14230202016001046 | E216: 3 | F216: 周鹮 | G216: 女 | H216: 142100100921 | I216: 63.2 | J216: 62.5 | M216: 62.885 | O216: 81.6 | P216: 72.2425 | Q216: 6
A217: 天门 | B217: 天门市市场监督管理局 | C217: 财务审计岗 | D217: 14230202016001046 | E217: 3 | F217: 何诗颖 | G217: 女 | H217: 142100101420 | I217: 64.8 | J217: 59 | M217: 62.19 | O217: 80.2 | P217: 71.195 | Q217: 7
A218: 天门 | B218: 天门市市场监督管理局 | C218: 财务审计岗 | D218: 14230202016001046 | E218: 3 | F218: 李青原 | G218: 女 | H218: 142100200910 | I218: 60.8 | J218: 61.5 | M218: 61.115 | O218: 80.6 | P218: 70.8575 | Q218: 8
A219: 天门 | B219: 天门市市场监督管理局 | C219: 财务审计岗 | D219: 14230202016001046 | E219: 3 | F219: 曾曙莲 | G219: 女 | H219: 142100103215 | I219: 65.6 | J219: 56.5 | M219: 61.505 | O219: 80 | P219: 70.7525 | Q219: 9
A221: 天门 | B221: 天门市市场监督管理局 | C221: 办公室综合岗 | D221: 14230202016001047 | E221: 3 | F221: 石子玉 | G221: 女 | H221: 142100202909 | I221: 60.8 | J221: 59.5 | M221: 60.215 | O221: 83.2 | P221: =M221/2+O221/2 -> 71.7075 | Q221: 1
A222: 天门 | B222: 天门市市场监督管理局 | C222: 办公室综合岗 | D222: 14230202016001047 | E222: 3 | F222: 张豪 | G222: 男 | H222: 142100201729 | I222: 63.2 | J222: 54.5 | M222: 59.285 | O222: 83.5 | P222: 71.3925 | Q222: 2
A223: 天门 | B223: 天门市市场监督管理局 | C223: 办公室综合岗 | D223: 14230202016001047 | E223: 3 | F223: 秦子杰 | G223: 女 | H223: 142100104517 | I223: 65.6 | J223: 52 | M223: 59.48 | O223: 81.2 | P223: 70.34 | Q223: 3
A224: 天门 | B224: 天门市市场监督管理局 | C224: 办公室综合岗 | D224: 14230202016001047 | E224: 3 | F224: 姚杰 | G224: 男 | H224: 142100105115 | I224: 57.6 | J224: 56 | M224: 56.88 | O224: 83.5 | P224: 70.19 | Q224: 4
A225: 天门 | B225: 天门市市场监督管理局 | C225: 办公室综合岗 | D225: 14230202016001047 | E225: 3 | F225: 蒋文娜 | G225: 女 | H225: 142100202213 | I225: 60.8 | J225: 59.5 | M225: 60.215 | O225: 79.7 | P225: 69.9575 | Q225: 5
A226: 天门 | B226: 天门市市场监督管理局 | C226: 办公室综合岗 | D226: 14230202016001047 | E226: 3 | F226: 邓卓远 | G226: 女 | H226: 142100100515 | I226: 60 | J226: 61 | M226: 60.45 | O226: 79.1 | P226: 69.775 | Q226: 6
A227: 天门 | B227: 天门市市场监督管理局 | C227: 办公室综合岗 | D227: 14230202016001047 | E227: 3 | F227: 周乐乐 | G227: 女 | H227: 142100101529 | I227: 58.4 | J227: 59 | M227: 58.67 | O227: 78.8 | P227: 68.735 | Q227: 7
A228: 天门 | B228: 天门市市场监督管理局 | C228: 办公室综合岗 | D228: 14230202016001047 | E228: 3 | F228: 候梦思 | G228: 女 | H228: 142100102010 | I228: 55.2 | J228: 60 | M228: 57.36 | O228: 74.2 | P228: 65.78 | Q228: 8
A229: 天门 | B229: 天门市市场监督管理局 | C229: 办公室综合岗 | D229: 14230202016001047 | E229: 3 | F229: 郑洲毓 | G229: 女 | H229: 142100204029 | I229: 66.4 | J229: 56.5 | M229: 61.945 | O229: 缺考 | Q229: 9
A231: 天门 | B231: 天门市市场监督管理局 | C231: 行政执法岗 | D231: 14230202016001048 | E231: 2 | F231: 胡浩 | G231: 男 | H231: 142100104129 | I231: 66.4 | J231: 62 | M231: 64.42 | O231: 81.8 | P231: =M231/2+O231/2 -> 73.11 | Q231: 1
A232: 天门 | B232: 天门市市场监督管理局 | C232: 行政执法岗 | D232: 14230202016001048 | E232: 2 | F232: 兰煜麟 | G232: 男 | H232: 142100104924 | I232: 67.2 | J232: 56.5 | M232: 62.385 | O232: 83 | P232: =M232/2+O232/2 -> 72.6925 | Q232: 2
A233: 天门 | B233: 天门市市场监督管理局 | C233: 行政执法岗 | D233: 14230202016001048 | E233: 2 | F233: 江紫凡 | G233: 女 | H233: 142100203918 | I233: 60.8 | J233: 52 | M233: 56.84 | O233: 83.2 | P233: =M233/2+O233/2 -> 70.02 | Q233: 3
A234: 天门 | B234: 天门市市场监督管理局 | C234: 行政执法岗 | D234: 14230202016001048 | E234: 2 | F234: 孟丽君 | G234: 女 | H234: 142100104415 | I234: 64.8 | J234: 51.5 | M234: 58.815 | O234: 80.3 | P234: =M234/2+O234/2 -> 69.5575 | Q234: 4
A235: 天门 | B235: 天门市市场监督管理局 | C235: 行政执法岗 | D235: 14230202016001048 | E235: 2 | F235: 吕媛媛 | G235: 女 | H235: 142100102911 | I235: 55.2 | J235: 58.5 | M235: 56.685 | O235: 79.6 | P235: =M235/2+O235/2 -> 68.1425 | Q235: 5
A236: 天门 | B236: 天门市市场监督管理局 | C236: 行政执法岗 | D236: 14230202016001048 | E236: 2 | F236: 方家晨 | G236: 男 | H236: 142100102528 | I236: 64 | J236: 49.5 | M236: 57.475 | O236: 缺考 | Q236: 6
A238: 天门 | B238: 天门市市场监督管理局 | C238: 质量安全监督岗 | D238: 14230202016001049 | E238: 5 | F238: 王登月 | G238: 男 | H238: 142100104421 | I238: 75.2 | J238: 54.5 | M238: 65.885 | O238: 85.8 | P238: =M238/2+O238/2 -> 75.8425 | Q238: 1
A239: 天门 | B239: 天门市市场监督管理局 | C239: 质量安全监督岗 | D239: 14230202016001049 | E239: 5 | F239: 高光华 | G239: 男 | H239: 142100102022 | I239: 68 | J239: 63.5 | M239: 65.975 | O239: 84 | P239: 74.9875 | Q239: 2
A240: 天门 | B240: 天门市市场监督管理局 | C240: 质量安全监督岗 | D240: 14230202016001049 | E240: 5 | F240: 王诗意 | G240: 女 | H240: 142100200302 | I240: 64.8 | J240: 63 | M240: 63.99 | O240: 82.2 | P240: 73.095 | Q240: 3
A241: 天门 | B241: 天门市市场监督管理局 | C241: 质量安全监督岗 | D241: 14230202016001049 | E241: 5 | F241: 许长城 | G241: 男 | H241: 142100203922 | I241: 66.4 | J241: 58.5 | M241: 62.845 | O241: 83 | P241: 72.9225 | Q241: 4
A242: 天门 | B242: 天门市市场监督管理局 | C242: 质量安全监督岗 | D242: 14230202016001049 | E242: 5 | F242: 王田磊 | G242: 男 | H242: 142100203002 | I242: 64 | J242: 56.5 | M242: 60.625 | O242: 83.6 | P242: 72.1125 | Q242: 5
A243: 天门 | B243: 天门市市场监督管理局 | C243: 质量安全监督岗 | D243: 14230202016001049 | E243: 5 | F243: 赵杭 | G243: 男 | H243: 142100200526 | I243: 61.6 | J243: 57 | M243: 59.53 | O243: 82.6 | P243: 71.065 | Q243: 6
A244: 天门 | B244: 天门市市场监督管理局 | C244: 质量安全监督岗 | D244: 14230202016001049 | E244: 5 | F244: 陈芳泽 | G244: 男 | H244: 142100102513 | I244: 61.6 | J244: 55 | M244: 58.63 | O244: 82.8 | P244: 70.715 | Q244: 7
A245: 天门 | B245: 天门市市场监督管理局 | C245: 质量安全监督岗 | D245: 14230202016001049 | E245: 5 | F245: 雷靖 | G245: 男 | H245: 142100104418 | I245: 66.4 | J245: 55 | M245: 61.27 | O245: 80 | P245: 70.635 | Q245: 8
... 394 more rows
